{"text_format":"1","workbook":"xlsx","n_sheets":8,"sheets":["Invulinstructie ","Totaalblad","Overzicht gemeenten","Versiebeheer","begin","Gemeente x","einde","Productcodes"],"not_rendered":{"charts":0,"images":1,"macros":1,"external_links":2,"defined_names":10,"comments":0,"pivot_tables":0},"unopened":[],"bounds":{"document_bytes":16777216,"sheet_cells":100000,"rows_first":2000,"rows_last":500,"rows_between":2000,"halvings":0,"cell_chars":16384,"cell_head_chars":4096},"cells_cut":0,"cells_raw":0,"read":"whole","date_system":"1900"}

{"sheet":"Invulinstructie ","index":0,"n_rows":3,"n_cols":2,"rows_kept":3,"cut":false,"hidden":false,"merged":[[2,1,86,9]]}
[null,"Invulinstructie Financiële productieverantwoording Wmo"]
[]
[null,"Algemeen\nDit formulier is bedoeld voor de financiële verantwoording van zorgaanbieders uit hoofde van de Wmo. De financiële productieverantwoording bevat de definitieve opgave van de gerealiseerde productie 2017 en is onlosmakelijk verbonden aan het “Algemeen accountantsprotocol financiële productieverantwoording WMO en Jeugdwet 2017”. Zie verder het “Algemeen accountantsprotocol financiële productieverantwoording WMO en Jeugdwet 2017”  (http://i-sociaaldomein.nl/).\n\nVoor zover in dit formulier wordt gesproken over ‘zorgaanbieder’ wordt hiermee bedoeld: alle onderdelen van een beherend rechtspersoon die samen opgenomen zijn in het gesloten contract met betreffende gemeente(n). Voor de definitie van 'gemeente' zie de definitielijst van het “Algemeen accountantsprotocol 2017 financiële productieverantwoording Wmo en Jeugdwet”.\n\nEen boekjaar wordt gelijk gesteld aan het kalenderjaar. Wanneer sprake is van zorgtrajecten/ DBC’s die niet per einde van het boekjaar kunnen worden afgesloten, geldt dat de financiële productieverantwoording tevens de financiële waarde van fictief afgesloten zorgtrajecten/ DBC's omvat die per 31 december 2017 onderhanden zijn. \n\nHet formulier moet van voor naar achteren en van boven naar beneden worden ingevuld. Alle door u in te vullen velden zijn ‘blauw gearceerd’. Witte cellen geven uitkomsten van berekeningen weer. \n\nHieronder wordt, indien van toepassing, per tabblad een toelichting gegeven. \n\nTabblad ‘Totaalblad’\nHet tabblad ‘Totaalblad’ geeft de totaal gerealiseerde productie uit hoofde van de Wmo weer, waarvan gemeenten een accountantscontrole voorschrijven.\n\nTabblad ‘Overzicht gemeenten’\nIn dit tabblad geeft u aan voor welke gemeente(n) u uw geleverde productie uit hoofde van de Wmo wilt verantwoorden. Heeft u met een gemeente ook afspraken binnen het domein Jeugdwet, dan gebruikt u daarvoor het verantwoordingsformat Jeugdwet. In de financiële productieverantwoording op totaalniveau per domein wordt alleen de productie Wmo verwerkt die betrekking heeft op de gemeenten die een accountantscontrole voorschrijven. De accountant waarmerkt dit overzicht en verwijst er naar in zijn controleverklaring (onderdeel “Overige aspecten – beperking in gebruik en verspreidingskring”). \n\nVoor het aanmaken van de verantwoordingen per gemeente, vult u in het bovenste blok op regelniveau de gemeente(n) in waar u verantwoording over af wilt leggen. Vervolgens klikt u op de button ‘Aanmaken verantwoordingen’. Het systeem maakt dan automatisch de tabbladen (voorzien van de naam van de gemeente) aan. Indien u meer regels nodig heeft, klikt u op ‘toevoegen’. Het systeem voegt een nieuwe regel toe onder de regel waar u staat met uw cursor. Dit maakt het mogelijk om ook tussen de reeds ingevoerde regels, nieuwe regels te plaatsen. Nadat u vervolgens de namen van de gemeente(n) heeft ingevuld, klikt u opnieuw op de button ‘Aanmaken verantwoordingen’. Het systeem voegt de nieuwe tabbladen voorzien van de naam van de gemeente toe. Heeft u per ongeluk een verkeerde gemeente opgenomen, dan kunt u deze verwijderen. Ga hiervoor op de betreffende regel staan en klik op de button ‘verwijderen’. Klik vervolgens opnieuw op de button ‘Aanmaken verantwoordingen’ om ook het bijbehorende tabblad te verwijderen.   \n \nNa het aanmaken van de tabbladen is het niet gewenst om de volgorde van de tabbladen te wijzigen. Indien u toch wijzigingen aanbrengt, kunnen er fouten optreden in de automatische tellingen.\n\nOp basis van de ingevulde financiële productieverantwoordingen per gemeente berekent het model in het tabblad ‘Totaalblad’ de totale gerealiseerde productie binnen het domein Wmo. \n\nDoor ondertekening van het formulier ‘Financiële productieverantwoording 2017’ verklaart de bestuurder van de zorgaanbieder dat de financiële productieverantwoording 2017 naar waarheid en in overeenstemming met de vigerende wet- en regelgeving is verantwoord. Zie hiervoor paragraaf 3.5 Normen- en toetsingskader, “Algemeen accountantsprotocol financiële productieverantwoording WMO en Jeugdwet 2017”.\n\nTabblad ‘Versiebeheer’\nAls het formulier na publicatie nog is aangepast en er dus een nieuwe versie beschikbaar is, dan kunt u in het tabblad Versiebeheer zien welke mutaties wij doorvoerden ten opzichte van het eerder gepubliceerde formulier. \n\nTabblad ‘Gemeente’ \nOvereenkomstig het ingevulde aantal ‘Aantal verantwoordingen bij het formulier’  worden standaard tabbladen aangemaakt. Per gemeente legt u achtereenvolgens verantwoording af over de gerealiseerde productie 2017 binnen het domein Wmo.\n\nBinnen het formulier is zoveel mogelijk rekening gehouden met de variëteit in de wijze van het maken van inkoopafspraken, gehanteerde productgroepbenamingen (iWmo 2.1) en financieringsvormen door de gemeenten voor 2017. Hierdoor kan het voorkomen dat een deel van de velden voor u niet relevant is of dat u juist extra velden nodig heeft. Extra velden kunnen worden toegevoegd via de button 'toevoegen'.  Een teveel aan rijen kan worden verminderd via een klik op de button 'verwijderen'. Voor de consistentie van het formulier, verzoeken wij u, met uitzondering van de daarvoor bestemde buttons, geen cellen/ rijen/ kolommen te verwijderen. \n\nIndien het overeengekomen contract voorzien is van een inkoopordernummer dan kunt u dit nummer per financieringsstroom invullen.\n\n- In de eerste kolom worden de automatisch aangemaakte regelnummers weergegeven;\n- In de tweede kolom, onder de naam van de Productcategorie (bijvoorbeeld Hulp bij het huishouden) vult u de omschrijving van het product in;\n- In de kolom 'Code' vult u, indien aanwezig, de bijbehorende productcode in;\n- In de kolom Eenheid geeft u aan op basis van welke grootheid de gerealiseerde productieaantallen verantwoord worden. Dit kan zijn minuten,  uren, dagdelen, etmalen, cliënten, trajecten, etc. ;\n- In de kolom 'Aantal' vult u het gerealiseerde aantal in, de Q; \n- In de kolom 'Prijs' vult u het overeengekomen tarief in, de P; \n- In de kolom 'Realisatie' berekent het formulier de gerealiseerde productie middels P*Q; \n- De laatste regel van een blok geeft de totaal gerealiseerde productie per Productcategorie weer. \n\nIn het onderdeel 19 vermeldt u producten of arrangementen die niet gefinancierd zijn op basis van een input- of outputfinanciering (P*Q).  Hierbij kunt u denken aan financieringsvormen als taakgerichte productieafspraken, subsidiabele kosten, lumpsumbekostiging of overige specifieke financieringsvormen. Verder biedt dit onderdeel tevens de mogelijkheid om correcties weer te geven. Hierbij kunt u bijvoorbeeld denken aan correcties uit voorgaande jaren n.a.v. een accountantscontrole. De regel correcties is niet bedoeld om gerealiseerde overproductie of doelmatigheidscorrecties weer te geven.\n\nIn onderdeel 20 verantwoordt u de productie die u heeft geleverd op basis van afspraken vanuit de Landelijke inkoopafspraken specialistische begeleiding ZG. Dit geldt voor een select aantal instellingen. De producten die hiervoor van toepassing zijn, zijn opgenomen in de productcodelijst, ‘geel gearceerd’ en tevens herkenbaar aan de productcodes waarin de letter ‘L’ is verwerkt. \n\nIndien u gebruik maakt van de Toelichtingsblokken, verzoeken wij u, indien mogelijk, te verwijzen naar het betreffende regelnummer. \n\nTabblad ‘Productcodes’\nHanteert de gemeente waar u zorg levert de landelijke standaardproductcodes conform iWmo 2.1, dan kunt u gebruik maken van het tabblad Productcodes. Hierin is de Standaardproductcodelijst opgenomen conform de landelijke I-standaarden (https://www.istandaarden.nl/istandaarden/iwmo/werken-met-iwmo-21/tabellen). Door de beveiliging van de werkbladen is het niet mogelijk om de standaardproductcodes te knippen en te plakken. Om de omschrijvingen en codes te verwerken in het verantwoordingsformat typt u in het gewenste veld in het tabblad van de gemeente waarover u verantwoordt \"=\",  vervolgens gaat u naar het tabblad \"Productcodes\", kiest u het gewenste/geleverde product en druk op Enter. In het tabblad zijn vanaf regel 293 ook productcodes opgenomen die in 2016 van toepassing waren en in 2017 nog doorlopen. \n\nDeze uitgave is met grote zorgvuldigheid en met gebruikmaking van de meest actuele gegevens tot stand gekomen. Het is evenwel niet geheel uitgesloten dat de informatie in deze uitgave onjuistheden en/of onvolkomenheden bevat. AAG aanvaardt geen aansprakelijkheid voor directe of indirecte schade ontstaan door eventuele onjuistheden en/of onvolkomenheden. Aan de inhoud van deze uitgave kunnen geen rechten worden ontleend."]

{"sheet":"Totaalblad","index":1,"n_rows":48,"n_cols":14,"rows_kept":48,"cut":false,"hidden":false,"merged":[[0,11,0,12],[0,9,0,10],[4,10,4,14],[5,13,5,14],[10,1,10,2],[7,3,7,8],[6,3,6,8],[10,3,10,8],[9,3,9,8],[19,5,19,7],[7,1,7,2],[8,1,8,2],[5,1,5,2],[6,1,6,2],[5,3,5,8],[11,3,11,8],[31,10,40,14],[30,10,30,14],[8,4,8,8],[25,1,26,14],[20,5,20,7],[40,1,40,8],[31,1,39,8],[28,1,28,16],[11,1,11,2],[27,1,27,4],[23,1,23,10],[22,1,22,10],[20,1,20,2],[9,1,9,2],[21,5,21,7],[20,3,20,4]]}
[null,"Financiële productieverantwoording Wmo op totaalniveau",null,null,null,null,null,null,null,2017]
[]
[null,"Zorgaanbieder "]
[]
[null,"Zorgaanbieder",null,null,null,null,null,null,null,null,"Versiebeheer"]
[null,"Naam",null,null,null,null,null,null,null,null,"Versiedatum",null,null,"2017-09-01"]
[null,"Plaats"]
[null,"KvK-nummer"]
[null,"Contactpersoon"]
[null,"Telefoon"]
[null,"E-mail"]
[null,"AGB-code"]
[]
[]
[]
[]
[]
[]
[]
[null,"Financieringsstroom",null,null,null,"Gerealiseerde productie 2017"]
[null,"Wmo",null,null,null,{"$f":"SUM(begin:einde!R1)","v":0}]
[null,"TOTAAL gerealiseerde productie ",null,null,null,{"$f":"F21","v":0}]
[]
[]
[null,"Door ondertekening van het formulier 'Financiële productieverantwoording 2017':"]
[null,"Verklaart de bestuurder van de zorgaanbieder dat de financiële productieverantwoording Wmo 2017 naar waarheid en in overeenstemming met het normenkader (zie paragraaf 3.5 Normen- en toetsingskader, Algemeen Accountantsprotocol 2017 Financiële productieverantwoording Wmo en Jeugdwet) is verantwoord."]
[]
[]
[]
[]
[null,"Zorgaanbieder",null,null,null,null,null,null,null,null,"Waarmerking Accountant voor identificatiedoeleinden:"]
[null,"(Naam & handtekening)",null,null,null,null,null,null,null,null,"behorend bij verklaring afgegeven d.d.:"]
[]
[]
[]
[]
[]
[]
[]
[]
[null,"Datum:"]
[]
[]
[]
[]
[]
[]
[null,"  "]

{"sheet":"Overzicht gemeenten","index":2,"n_rows":44,"n_cols":14,"rows_kept":44,"cut":false,"hidden":false,"merged":[[33,10,33,14],[34,10,43,14],[20,2,20,9],[21,2,21,9],[22,2,22,9],[23,2,23,9],[25,2,25,9],[9,2,9,9],[10,2,10,9],[11,2,11,9],[12,2,12,9],[13,2,13,9],[19,2,19,9],[14,2,14,9],[15,2,15,9],[16,2,16,9],[18,2,18,9],[17,2,17,9]]}
[null,"Overzicht gemeenten waarop financiële productieverantwoording WMO op totaalniveau betrekking heeft"]
[]
[]
[]
[]
[]
[]
[]
[null,0,"Gemeente(n)"]
[null,1]
[null,2]
[null,3]
[null,4]
[null,5]
[null,6]
[null,7]
[null,8]
[null,9]
[null,10]
[null,11]
[null,12]
[null,13]
[null,14]
[null,15]
[null,500,null,null,null,null,null,null,null,null,null,null,null,"hide row"]
[null,null,null,null,null,null,null,null,null,null,null,null,null,"hide row"]
[]
[]
[]
[]
[]
[]
[]
[null,"Zorgaanbieder",null,null,null,null,null,null,null,null,"Waarmerking Accountant voor identificatiedoeleinden:"]
[null,"(Naam & handtekening)",null,null,null,null,null,null,null,null,"behorend bij verklaring afgegeven d.d.:"]
[]
[]
[]
[]
[]
[]
[]
[]
[null,"Datum:"]

{"sheet":"Versiebeheer","index":3,"n_rows":11,"n_cols":6,"rows_kept":11,"cut":false,"hidden":false,"merged":[]}
[]
[null,"Versiebeheer"]
[]
[null,"In onderstaande tabel ziet u welke mutaties er zijn ten opzichte van eerdere versies van het formulier Financiële productieverantwoording 20XX"]
[null,"Hiermee kunt u bepalen of de gedane aanpassingen voor u van belang zijn. "]
[]
[null,"De eerste versie van het formulier is van:",null,null,"2017-09-04"]
[null,"De huidige versie van het formulier is van:",null,null,{"$f":"MAX(B11:B20)","v":"2017-09-04"}]
[]
[null,"Versie","Werkblad","Regel(s)","Foutmelding","Aanpassing"]
[null,{"$f":"E7","v":"2017-09-04"},null,null,null,"Eerste versie"]

{"sheet":"begin","index":4,"n_rows":0,"n_cols":0,"rows_kept":0,"cut":false,"hidden":true,"merged":[]}

{"sheet":"Gemeente x","index":5,"n_rows":197,"n_cols":18,"rows_kept":197,"cut":false,"hidden":true,"merged":[[83,2,83,5],[84,2,84,5],[27,2,27,5],[33,2,33,5],[196,1,196,7],[53,2,53,6],[90,2,90,5],[91,2,91,5],[76,2,76,5],[105,2,105,5],[140,2,140,5],[56,2,56,5],[125,2,125,5],[132,2,132,5],[97,2,97,5],[163,2,163,9],[0,8,2,10],[7,8,7,10],[190,9,190,10],[104,2,104,5],[111,2,111,5],[8,1,8,2],[139,2,139,5],[68,2,68,5],[8,8,8,9],[9,8,9,9],[10,8,10,9],[11,8,11,9],[9,1,9,2],[13,8,13,9],[12,8,12,9],[14,8,14,9],[191,9,191,10],[25,2,25,5],[19,2,19,5],[75,2,75,5],[156,2,156,5],[141,2,141,5],[54,2,54,5],[146,2,146,5],[127,2,127,5],[134,2,134,5],[154,2,154,5],[155,2,155,5],[147,2,147,5],[148,2,148,5],[77,2,77,5],[55,2,55,5],[118,2,118,5],[69,2,69,5],[70,2,70,5],[63,2,63,5],[17,3,17,5],[20,2,20,5],[32,2,32,5],[41,2,41,5],[48,2,48,5],[26,2,26,5],[34,2,34,5],[40,2,40,5],[39,2,39,5],[45,2,45,6],[46,2,46,5],[47,2,47,5],[149,2,149,5],[8,3,8,6],[9,3,9,6],[11,3,11,6],[18,2,18,5],[10,1,10,2],[10,3,10,6],[12,3,12,6],[11,1,11,2],[12,1,12,2],[61,2,61,5],[62,2,62,5],[133,2,133,5],[99,2,99,5],[106,2,106,5],[85,2,85,5],[192,9,192,10],[120,2,120,5],[92,2,92,5],[98,2,98,5],[112,2,112,5],[119,2,119,5],[126,2,126,5],[178,1,178,10],[179,1,188,1],[166,1,166,10],[179,2,188,10],[167,1,176,1],[167,2,176,10],[165,1,165,10],[164,2,164,9],[113,2,113,5]]}
[null,"Financiële productieverantwoording Wmo",null,null,null,null,null,null,{"$f":"\"Gemeente \"&D9","v":"Gemeente "},null,null,null,null,null,null,null,"wmo",{"$f":"K163","v":0}]
[]
[null,null,null,null,null,null,null,null,null,null,null,null,null,null,null,null,"jeugd",{"$f":"#REF!","v":{"$error":"#REF!"}}]
[null,"In dit onderdeel verantwoordt de zorgaanbieder de geleverde prestaties waarover de zorgaanbieder verantwoording af dient te leggen bij de gemeente:  "]
[null,"geleverde prestaties met als grondslag de Wmo . Alle aantallen worden op basis van de werkelijke realisatie ingevuld. "]
[]
[]
[null,"Gemeente ",null,null,null,null,null,null,"Zorgaanbieder"]
[null,"Naam",null,null,null,null,null,null,"Naam",null,{"$f":"Totaalblad!D6","v":0}]
[null,"Plaats",null,null,null,null,null,null,"Plaats",null,{"$f":"Totaalblad!D7","v":0}]
[null,"Contactpersoon",null,null,null,null,null,null,"KvK-nummer",null,{"$f":"Totaalblad!D8","v":0}]
[null,"Telefoon",null,null,null,null,null,null,"Contactpersoon Wmo"]
[null,"E-mail",null,null,null,null,null,null,"Telefoon"]
[null,null,null,null,null,null,null,null,"E-mail"]
[null,null,null,null,null,null,null,null,"AGB-code",null,{"$f":"Totaalblad!D12","v":0}]
[]
[null,"Geleverde prestaties Wmo"]
[null,null,"Inkoop order nr: "]
[null,"01","Hulp bij het huishouden",null,null,null,"Code","Eenheid","Aantal (Q)","Prijs in € (P)","Realisatie 2017 in €\n"]
[null,100,null,null,null,null,null,null,null,null,{"$f":"I20*J20","v":0}]
[null,101,null,null,null,null,null,null,null,null,{"$f":"I21*J21","v":0}]
[null,199]
[null,null,"Totaal Hulp bij het huishouden",null,null,null,null,null,null,null,{"$f":"SUM(K20:K22)","v":0}]
[]
[]
[null,"02","Begeleiding",null,null,null,"Code","Eenheid","Aantal (Q)","Prijs in € (P)","Realisatie 2017 in €\n"]
[null,200,null,null,null,null,null,null,null,null,{"$f":"I27*J27","v":0}]
[null,201,null,null,null,null,null,null,null,null,{"$f":"I28*J28","v":0}]
[null,299]
[null,null,"Totaal Begeleiding",null,null,null,null,null,null,null,{"$f":"SUM(K27:K29)","v":0}]
[]
[]
[null,"03","Persoonlijke verzorging",null,null,null,"Code","Eenheid","Aantal (Q)","Prijs in € (P)","Realisatie 2017 in €\n"]
[null,300,null,null,null,null,null,null,null,null,{"$f":"I34*J34","v":0}]
[null,301,null,null,null,null,null,null,null,null,{"$f":"I35*J35","v":0}]
[null,399]
[null,null,"Totaal Persoonlijke verzorging",null,null,null,null,null,null,null,{"$f":"SUM(K34:K36)","v":0}]
[]
[]
[null,"04","Kortdurend verblijf",null,null,null,"Code","Eenheid","Aantal (Q)","Prijs in € (P)","Realisatie 2017 in €\n"]
[null,400,null,null,null,null,null,null,null,null,{"$f":"I41*J41","v":0}]
[null,401,null,null,null,null,null,null,null,null,{"$f":"I42*J42","v":0}]
[null,499]
[null,null,"Totaal Kortdurend verblijf",null,null,null,null,null,null,null,{"$f":"SUM(K41:K43)","v":0}]
[]
[]
[null,"05","Woondiensten",null,null,null,"Code","Eenheid","Aantal (Q)","Prijs in € (P)","Realisatie 2017 in €\n"]
[null,500,null,null,null,null,null,null,null,null,{"$f":"I48*J48","v":0}]
[null,501,null,null,null,null,null,null,null,null,{"$f":"I49*J49","v":0}]
[null,599]
[null,null,"Totaal Woondiensten",null,null,null,null,null,null,null,{"$f":"SUM(K48:K50)","v":0}]
[]
[]
[]
[null,"06","Overige ondersteuning gericht op het individu of huishouden/gezin",null,null,null,"Code","Eenheid","Aantal (Q)","Prijs in € (P)","Realisatie 2017 in €\n"]
[null,600,null,null,null,null,null,null,null,null,{"$f":"I56*J56","v":0}]
[null,601,null,null,null,null,null,null,null,null,{"$f":"I57*J57","v":0}]
[null,699]
[null,null,"Totaal Overige ondersteuning gericht op het individu of huishouden/gezin",null,null,null,null,null,null,null,{"$f":"SUM(K56:K58)","v":0}]
[]
[]
[null,"07","Dagbesteding",null,null,null,"Code","Eenheid","Aantal (Q)","Prijs in € (P)","Realisatie 2017 in €\n"]
[null,700,null,null,null,null,null,null,null,null,{"$f":"I63*J63","v":0}]
[null,701,null,null,null,null,null,null,null,null,{"$f":"I64*J64","v":0}]
[null,799]
[null,null,"Totaal Dagbesteding",null,null,null,null,null,null,null,{"$f":"SUM(K63:K65)","v":0}]
[]
[]
[null,"08","Vervoerdiensten",null,null,null,"Code","Eenheid","Aantal (Q)","Prijs in € (P)","Realisatie 2017 in €\n"]
[null,800,null,null,null,null,null,null,null,null,{"$f":"I70*J70","v":0}]
[null,801,null,null,null,null,null,null,null,null,{"$f":"I71*J71","v":0}]
[null,899]
[null,null,"Totaal Vervoerdiensten",null,null,null,null,null,null,null,{"$f":"SUM(K70:K72)","v":0}]
[]
[]
[null,"09","Overige groepsgerichte ondersteuning",null,null,null,"Code","Eenheid","Aantal (Q)","Prijs in € (P)","Realisatie 2017 in €\n"]
[null,900,null,null,null,null,null,null,null,null,{"$f":"I77*J77","v":0}]
[null,901,null,null,null,null,null,null,null,null,{"$f":"I78*J78","v":0}]
[null,999]
[null,null,"Totaal Overige groepsgerichte ondersteuning",null,null,null,null,null,null,null,{"$f":"SUM(K77:K79)","v":0}]
[]
[]
[]
[null,"10","Overige maatwerk arrangementen",null,null,null,"Code","Eenheid","Aantal (Q)","Prijs in € (P)","Realisatie 2017 in €\n"]
[null,1000,null,null,null,null,null,null,null,null,{"$f":"I85*J85","v":0}]
[null,{"$f":"B85+1","v":1001},null,null,null,null,null,null,null,null,{"$f":"I86*J86","v":0}]
[null,1099]
[null,null,"Totaal Overige maatwerk arrangementen",null,null,null,null,null,null,null,{"$f":"SUM(K85:K87)","v":0}]
[]
[]
[null,"11","Rolstoelen",null,null,null,"Code","Eenheid","Aantal (Q)","Prijs in € (P)","Realisatie 2017 in €\n"]
[null,1100,null,null,null,null,null,null,null,null,{"$f":"I92*J92","v":0}]
[null,1101,null,null,null,null,null,null,null,null,{"$f":"I93*J93","v":0}]
[null,1199]
[null,null,"Totaal Rolstoelen",null,null,null,null,null,null,null,{"$f":"SUM(K92:K94)","v":0}]
[]
[]
[null,"12","Vervoervoorzieningen",null,null,null,"Code","Eenheid","Aantal (Q)","Prijs in € (P)","Realisatie 2017 in €\n"]
[null,1200,null,null,null,null,null,null,null,null,{"$f":"I99*J99","v":0}]
[null,1201,null,null,null,null,null,null,null,null,{"$f":"I100*J100","v":0}]
[null,1299]
[null,null,"Totaal Vervoervoorzieningen",null,null,null,null,null,null,null,{"$f":"SUM(K99:K101)","v":0}]
[]
[]
[null,"13","Woonvoorzieningen",null,null,null,"Code","Eenheid","Aantal (Q)","Prijs in € (P)","Realisatie 2017 in €\n"]
[null,1300,null,null,null,null,null,null,null,null,{"$f":"I106*J106","v":0}]
[null,1301,null,null,null,null,null,null,null,null,{"$f":"I107*J107","v":0}]
[null,1399]
[null,null,"Totaal Woonvoorzieningen",null,null,null,null,null,null,null,{"$f":"SUM(K106:K108)","v":0}]
[]
[]
[null,"14","Overige hulpmiddelen",null,null,null,"Code","Eenheid","Aantal (Q)","Prijs in € (P)","Realisatie 2017 in €\n"]
[null,1400,null,null,null,null,null,null,null,null,{"$f":"I113*J113","v":0}]
[null,1401,null,null,null,null,null,null,null,null,{"$f":"I114*J114","v":0}]
[null,1499]
[null,null,"Totaal Overige hulpmiddelen",null,null,null,null,null,null,null,{"$f":"SUM(K113:K115)","v":0}]
[]
[]
[null,"15","Beschermd wonen",null,null,null,"Code","Eenheid","Aantal (Q)","Prijs in € (P)","Realisatie 2017 in €\n"]
[null,1500,null,null,null,null,null,null,null,null,{"$f":"I120*J120","v":0}]
[null,1501,null,null,null,null,null,null,null,null,{"$f":"I121*J121","v":0}]
[null,1599]
[null,null,"Totaal Beschermd wonen",null,null,null,null,null,null,null,{"$f":"SUM(K120:K122)","v":0}]
[]
[]
[null,"16","Opvang",null,null,null,"Code","Eenheid","Aantal (Q)","Prijs in € (P)","Realisatie 2017 in €\n"]
[null,1600,null,null,null,null,null,null,null,null,{"$f":"I127*J127","v":0}]
[null,1601,null,null,null,null,null,null,null,null,{"$f":"I128*J128","v":0}]
[null,1699]
[null,null,"Totaal Opvang",null,null,null,null,null,null,null,{"$f":"SUM(K127:K129)","v":0}]
[]
[]
[null,"17","Spoedopvang",null,null,null,"Code","Eenheid","Aantal (Q)","Prijs in € (P)","Realisatie 2017 in €\n"]
[null,1700,null,null,null,null,null,null,null,null,{"$f":"I134*J134","v":0}]
[null,1701,null,null,null,null,null,null,null,null,{"$f":"I135*J135","v":0}]
[null,1799]
[null,null,"Totaal Spoedopvang",null,null,null,null,null,null,null,{"$f":"SUM(K134:K136)","v":0}]
[]
[]
[null,"18","Overige beschermd wonen en opvang",null,null,null,"Code","Eenheid","Aantal (Q)","Prijs in € (P)","Realisatie 2017 in €\n"]
[null,1800,null,null,null,null,null,null,null,null,{"$f":"I141*J141","v":0}]
[null,1801,null,null,null,null,null,null,null,null,{"$f":"I142*J142","v":0}]
[null,1899]
[null,null,"Totaal Overige beschermd wonen en opvang",null,null,null,null,null,null,null,{"$f":"SUM(K141:K143)","v":0}]
[]
[]
[null,19,"Overige geleverde prestaties of vergoedingen",null,null,null,"Code","Financierings-\nvorm","Aantal (Q)","Prijs in € (P)","Realisatie 2017 in €\n",null," "]
[null,1900,"Subsidiabele kosten ",null,null,null,null,null,null,null,{"$f":"I148*J148","v":0}]
[null,1901,"Lumpsum ",null,null,null,null,null,null,null,{"$f":"I149*J149","v":0}]
[null,1902,"Correcties",null,null,null,null,null,null,null,{"$f":"I150*J150","v":0}]
[null,1999]
[null,null,"Totaal Overige geleverde prestaties of vergoedingen",null,null,null,null,null,null,null,{"$f":"SUM(K148:K151)","v":0}]
[]
[]
[null,"20","Landelijke inkoopafspraken specialistische begeleiding ZG",null,null,null,"Code","Eenheid","Aantal (Q)","Prijs in € (P)","Realisatie 2017 in €\n"]
[null,2000,null,null,null,null,null,null,null,null,{"$f":"I156*J156","v":0}]
[null,2001,null,null,null,null,null,null,null,null,{"$f":"I157*J157","v":0}]
[null,2099]
[null,null,"Totaal Landelijke inkoopafspraken specialistische begeleiding ZG",null,null,null,null,null,null,null,{"$f":"SUM(K156:K158)","v":0}]
[]
[]
[null,21,"Financiële realisatie Wmo prestaties",null,null,null,null,null,null,null,"Totaal budget in €"]
[null,2100,"Gerealiseerde productie Wmo",null,null,null,null,null,null,null,{"$f":"SUM(K37+K30+K23+K51+K59+K44+K66+K73+K80+K88+K95+K102+K109+K116+K123+K130+K137+K144+K152+K159)","v":0}]
[null,{"$f":"B163+1","v":2101},"Afgesproken budget Wmo",null,null,null,null,null,null,null,2800000]
[null,{"$f":"B164+1","v":2102},"Gerealiseerde omzet Wmo",null,null,null,null,null,null,null,{"$f":"IF(K163>K164,K164,K163)","v":0}]
[]
[null,"Ruimte voor toelichting in verband met ongecorrigeerde afwijkingen en onzekerheden"]
[]
[]
[]
[]
[]
[]
[]
[]
[]
[]
[]
[null,"Ruimte voor algemene toelichting"]
[]
[]
[]
[]
[]
[]
[]
[]
[]
[]
[]
[null,"Zorgaanbieder",null,null,null,null,null,null,null,"Rapport van bevindingen:"]
[null,"(Naam & handtekening)",null,null,null,null,null,null,null,"Ja/Nee"]
[null,null,null,null,null,null,null,null,null,"A.u.b. doorhalen wat niet van toepassing is."]
[]
[]
[]
[null,"Datum:"]

{"sheet":"einde","index":6,"n_rows":0,"n_cols":0,"rows_kept":0,"cut":false,"hidden":true,"merged":[]}

{"sheet":"Productcodes","index":7,"n_rows":362,"n_cols":3,"rows_kept":362,"cut":false,"hidden":false,"merged":[]}
["IWMO 2.0","WMO021 - PRODUCTCODE","CODE"]
["Versie","2016-10-01"]
[null,"Betekenis","Code"]
[1,"Hulp bij het huishouden"]
[null,"Hulp bij het huishouden: outputgericht","01A00"]
[null,"HH 1: outputgericht","01A01"]
[null,"HH 2: outputgericht","01A02"]
[null,"HH 3: outputgericht","01A03"]
[null,"HH 1: inspanningsgericht","01A04"]
[null,"HH 2: inspanningsgericht","01A05"]
[null,"HH 3: inspanningsgericht","01A06"]
[null,"HH 1: outputgericht (licht)","01A07"]
[null,"HH 1: outputgericht (middel)","01A08"]
[null,"HH 1: outputgericht (middelzwaar)","01A09"]
[null,"HH 1: outputgericht (zwaar)","01A10"]
[null,"HH 1: outputgericht (extra zwaar)","01A11"]
[null,"HH 2: outputgericht (licht)","01A12"]
[null,"HH 2: outputgericht (middel)","01A13"]
[null,"HH 2: outputgericht (middelzwaar)","01A14"]
[null,"HH 2: outputgericht (zwaar)","01A15"]
[null,"HH 2: outputgericht (extra zwaar)","01A16"]
[null,"HH 3: outputgericht (licht)","01A17"]
[null,"HH 3: outputgericht (middel)","01A18"]
[null,"HH 3: outputgericht (middelzwaar)","01A19"]
[null,"HH 3: outputgericht (zwaar)","01A20"]
[null,"HH 3: outputgericht (extra zwaar)","01A21"]
[2,"Begeleiding "]
[null,"Begeleiding regulier: outputgericht","02A01"]
[null,"Begeleiding specialistisch: outputgericht","02A02"]
[null,"Begeleiding regulier: inspanningsgericht","02A03"]
[null,"Begeleiding mantelzorg: inspanningsgericht","02A04"]
[null,"Begeleiding specialistisch: inspanningsgericht","02A05"]
[null,"Begeleiding regulier: outputgericht (licht)","02A06"]
[null,"Begeleiding regulier: outputgericht (middel)","02A07"]
[null,"Begeleiding regulier: outputgericht (middelzwaar)","02A08"]
[null,"Begeleiding regulier: outputgericht (zwaar)","02A09"]
[null,"Begeleiding regulier: outputgericht (extra zwaar)","02A10"]
[null,"Begeleiding specialistisch: outputgericht (licht)","02A11"]
[null,"Begeleiding specialistisch: outputgericht (middel)","02A12"]
[null,"Begeleiding specialistisch: outputgericht (middelzwaar)","02A13"]
[null,"Begeleiding specialistisch: outputgericht (zwaar)","02A14"]
[null,"Begeleiding specialistisch: outputgericht (extra zwaar)","02A15"]
[null,"Begeleiding regulier: inspanningsgericht (individueel)","02A16"]
[null,"Begeleiding regulier: inspanningsgericht (groep)","02A17"]
[null,"Begeleiding regulier: inspanningsgericht (op afstand)","02A18"]
[null,"Begeleiding specialistisch: inspanningsgericht (individueel)","02A19"]
[null,"Begeleiding specialistisch: inspanningsgericht (groep)","02A20"]
[null,"Begeleiding specialistisch: inspanningsgericht (op afstand)","02A21"]
[null,"Begeleiding laag tarief: inspanningsgericht","02A22"]
[null,"Begeleiding GGZ: outputgericht (licht)","02A23"]
[null,"Begeleiding GGZ: outputgericht (middel)","02A24"]
[null,"Begeleiding GGZ: outputgericht (zwaar)","02A25"]
[null,"Begeleiding GHZ: outputgericht (licht)","02A26"]
[null,"Begeleiding GHZ: outputgericht (middel)","02A27"]
[null,"Begeleiding GHZ: outputgericht (zwaar)","02A28"]
[null,"Begeleiding VV&T: outputgericht (licht)","02A29"]
[null,"Begeleiding VV&T: outputgericht (middel)","02A30"]
[null,"Begeleiding VV&T: outputgericht (zwaar)","02A31"]
[null,"Mantelzorg GGZ: outputgericht (licht)","02A32"]
[null,"Mantelzorg GGZ: outputgericht (middel)","02A33"]
[null,"Mantelzorg GGZ: outputgericht (zwaar)","02A34"]
[null,"Mantelzorg GHZ: outputgericht (licht)","02A35"]
[null,"Mantelzorg GHZ: outputgericht (middel)","02A36"]
[null,"Mantelzorg GHZ: outputgericht (zwaar)","02A37"]
[null,"Mantelzorg VV&T: outputgericht (licht)","02A38"]
[null,"Mantelzorg VV&T: outputgericht (middel)","02A39"]
[null,"Mantelzorg VV&T: outputgericht (zwaar)","02A40"]
[null,"Vroegdoven: Toeleiding (landelijke inkoop ZG)","02L01"]
[null,"Vroegdoven: Verlengde toeleiding (landelijke inkoop ZG)","02L02"]
[null,"Vroegdoven: Consultatie (landelijke inkoop ZG)","02L03"]
[null,"Vroegdoven: Beantwoording korte begeleidingsvragen (landelijke inkoop ZG)","02L04"]
[null,"Vroegdoven: Gespecialiseerde begeleiding (landelijke inkoop ZG)","02L05"]
[null,"Vroegdoven: Revaliderende begeleiding (landelijke inkoop ZG)","02L06"]
[null,"Doofblinden: Toeleiding (landelijke inkoop ZG)","02L08"]
[null,"Doofblinden: Verlengde toeleiding (landelijke inkoop ZG)","02L09"]
[null,"Doofblinden: Consultatie (landelijke inkoop ZG)","02L10"]
[null,"Doofblinden: Beantwoording korte begeleidingsvragen (landelijke inkoop ZG)","02L11"]
[null,"Doofblinden: Gespecialiseerde begeleiding (landelijke inkoop ZG)","02L12"]
[null,"Doofblinden: Begeleidersvoorziening (landelijke inkoop ZG)","02L13"]
[null,"Visueel: gespecialiseerde begeleiding (landelijke inkoop ZG)","02L15"]
[3,"Persoonlijke verzorging"]
[null,"Persoonlijke verzorging specialistisch: outputgericht","03A01"]
[null,"Persoonlijke verzorging regulier: outputgericht","03A02"]
[null,"Persoonlijke verzorging regulier: inspanningsgericht","03A03"]
[null,"Persoonlijke verzorging specialistisch: inspanningsgericht","03A04"]
[null,"Persoonlijke verzorging regulier: outputgericht (licht)","03A05"]
[null,"Persoonlijke verzorging regulier: outputgericht (middel)","03A06"]
[null,"Persoonlijke verzorging regulier: outputgericht (zwaar)","03A07"]
[null,"Persoonlijke verzorging specialistisch: outputgericht (licht)","03A08"]
[null,"Persoonlijke verzorging specialistisch: outputgericht (middel)","03A09"]
[null,"Persoonlijke verzorging specialistisch: outputgericht (zwaar)","03A10"]
[null,"Persoonlijke verzorging regulier: inspanningsgericht (individueel)","03A11"]
[null,"Persoonlijke verzorging regulier: inspanningsgericht (op afstand)","03A12"]
[null,"Persoonlijke verzorging specialistisch: inspanningsgericht (individueel)","03A13"]
[null,"Persoonlijke verzorging specialistisch: inspanningsgericht (op afstand)","03A14"]
[null,"Persoonlijke verzorging laag tarief: inspanningsgericht","03A15"]
[4,"Kortdurend verblijf"]
[null,"Kortdurend verblijf: outputgericht","04A00"]
[null,"Kortdurend verblijf: inspanningsgericht","04A01"]
[null,"Kortdurend verblijf regulier: inspanningsgericht","04A02"]
[null,"Kortdurend verblijf deeltijdzorg: inspanningsgericht","04A03"]
[null,"Kortdurend verblijf: logeer/respijtzorg","04A04"]
[null,"Kortdurend verblijf: inspanningsgericht (licht)","04A05"]
[null,"Kortdurend verblijf: inspanningsgericht (middel)","04A06"]
[null,"Kortdurend verblijf: inspanningsgericht (middelzwaar)","04A07"]
[null,"Kortdurend verblijf: inspanningsgericht (zwaar)","04A08"]
[null,"Kortdurend verblijf: inspanningsgericht (extra zwaar)","04A09"]
[null,"Kortdurend verblijf specialistisch: inspanningsgericht","04A10"]
[5,"Woondiensten"]
[null,"Huurderving","05A01"]
[null,"Keuring woonvoorziening","05A02"]
[null,"Tijdelijke huisvesting","05A03"]
[null,"Verhuizing en inrichting","05A04"]
[null,"Vrijmaken woning","05A05"]
[null,"Boodschappendienst","05A06"]
[null,"Maaltijdvoorziening","05A07"]
[7,"Dagbesteding"]
[null,"Dagbesteding regulier: outputgericht","07A01"]
[null,"Dagbesteding specialistisch: outputgericht","07A02"]
[null,"Dagbesteding regulier: inspanningsgericht","07A03"]
[null,"Dagbesteding specialistisch: inspanningsgericht","07A04"]
[null,"Dagbesteding regulier: outputgericht (licht)","07A05"]
[null,"Dagbesteding regulier: outputgericht (middel)","07A06"]
[null,"Dagbesteding regulier: outputgericht (zwaar)","07A07"]
[null,"Dagbesteding specialistisch: outputgericht (licht)","07A08"]
[null,"Dagbesteding specialistisch: outputgericht (middel)","07A09"]
[null,"Dagbesteding specialistisch: outputgericht (zwaar)","07A10"]
[null,"Dagbesteding regulier: inspanningsgericht (licht)","07A11"]
[null,"Dagbesteding regulier: inspanningsgericht (middel)","07A12"]
[null,"Dagbesteding regulier: inspanningsgericht (zwaar)","07A13"]
[null,"Dagbesteding specialistisch: inspanningsgericht (licht)","07A14"]
[null,"Dagbesteding specialistisch: inspanningsgericht (middel)","07A15"]
[null,"Dagbesteding specialistisch: inspanningsgericht (zwaar)","07A16"]
[null,"Vroegdoven: Dagactiviteit zintuiglijk gehandicapten (landelijke inkoop ZG)","07L01"]
[null,"Doofblinden: Dagactiviteit zintuiglijk gehandicapten (landelijke inkoop ZG)","07L02"]
[8,"Vervoerdiensten"]
[null,"Vervoer: outputgericht","08A01"]
[null,"Vervoer rolstoel: outputgericht","08A02"]
[null,"Vervoer regulier: inspanningsgericht","08A03"]
[null,"Vervoer rolstoel: inspanningsgericht","08A04"]
[null,"Vervoer: outputgericht (licht)","08A05"]
[null,"Vervoer: outputgericht (middel)","08A06"]
[null,"Vervoer: outputgericht (zwaar)","08A07"]
[null,"Vervoer rolstoel: outputgericht (licht)","08A08"]
[null,"Vervoer rolstoel: outputgericht (middel)","08A09"]
[null,"Vervoer rolstoel: outputgericht (zwaar)","08A10"]
[10,"Overige maatwerk arrangementen"]
[null,"Overige maatwerkarrangementen","10A00"]
[null,"Maatwerkarrangement ggz intramuraal","10A01"]
[null,"Maatwerkarrangement ggz extramuraal","10A02"]
[null,"Maatwerkarrangement zintuigelijk gehandicapten","10A03"]
[null,"Maatwerkarrangement verstandelijk gehandicapten","10A04"]
[null,"Maatwerkarrangement gehandicapten","10A05"]
[null,"Maatwerkarrangement ouderen","10A06"]
[null,"Maatwerkarrangement ggz intramuraal (licht)","10A07"]
[null,"Maatwerkarrangement ggz intramuraal (middel)","10A08"]
[null,"Maatwerkarrangement ggz intramuraal (middelzwaar)","10A09"]
[null,"Maatwerkarrangement ggz intramuraal (zwaar)","10A10"]
[null,"Maatwerkarrangement ggz intramuraal (extra zwaar)","10A11"]
[null,"Maatwerkarrangement ggz extramuraal (licht)","10A12"]
[null,"Maatwerkarrangement ggz extramuraal (middel)","10A13"]
[null,"Maatwerkarrangement ggz extramuraal (middelzwaar)","10A14"]
[null,"Maatwerkarrangement ggz extramuraal (zwaar)","10A15"]
[null,"Maatwerkarrangement ggz extramuraal (extra zwaar)","10A16"]
[null,"Maatwerkarrangement zintuigelijk gehandicapten (licht)","10A17"]
[null,"Maatwerkarrangement zintuigelijk gehandicapten (middel)","10A18"]
[null,"Maatwerkarrangement zintuigelijk gehandicapten (middelzwaar)","10A19"]
[null,"Maatwerkarrangement zintuigelijk gehandicapten (zwaar)","10A20"]
[null,"Maatwerkarrangement zintuigelijk gehandicapten (extra zwaar)","10A21"]
[null,"Maatwerkarrangement verstandelijk gehandicapten (licht)","10A22"]
[null,"Maatwerkarrangement verstandelijk gehandicapten (middel)","10A23"]
[null,"Maatwerkarrangement verstandelijk gehandicapten (middelzwaar)","10A24"]
[null,"Maatwerkarrangement verstandelijk gehandicapten (zwaar)","10A25"]
[null,"Maatwerkarrangement verstandelijk gehandicapten (extra zwaar)","10A26"]
[null,"Maatwerkarrangement gehandicapten (licht)","10A27"]
[null,"Maatwerkarrangement gehandicapten (middel)","10A28"]
[null,"Maatwerkarrangement gehandicapten (middelzwaar)","10A29"]
[null,"Maatwerkarrangement gehandicapten (zwaar)","10A30"]
[null,"Maatwerkarrangement gehandicapten (extra zwaar)","10A31"]
[null,"Maatwerkarrangement ouderen (licht)","10A32"]
[null,"Maatwerkarrangement ouderen (middel)","10A33"]
[null,"Maatwerkarrangement ouderen (middelzwaar)","10A34"]
[null,"Maatwerkarrangement ouderen (zwaar)","10A35"]
[null,"Maatwerkarrangement ouderen (extra zwaar)","10A36"]
[null,"Zelfstandig leven 1 (licht)","10A37"]
[null,"Zelfstandig leven 1 (middel)","10A38"]
[null,"Zelfstandig leven 1 (zwaar)","10A39"]
[null,"Zelfstandig leven 2 (licht)","10A40"]
[null,"Zelfstandig leven 2 (middel)","10A41"]
[null,"Zelfstandig leven 2 (zwaar)","10A42"]
[null,"Zelfstandig leven 3 (licht)","10A43"]
[null,"Zelfstandig leven 3 (middel)","10A44"]
[null,"Zelfstandig leven 3 (zwaar)","10A45"]
[null,"Maatschappelijke deelname 1 (licht)","10A46"]
[null,"Maatschappelijke deelname 1 (middel)","10A47"]
[null,"Maatschappelijke deelname 1 (zwaar)","10A48"]
[null,"Maatschappelijke deelname 2 (licht)","10A49"]
[null,"Maatschappelijke deelname 2 (middel)","10A50"]
[null,"Maatschappelijke deelname 2 (zwaar)","10A51"]
[null,"Maatschappelijke deelname 3 (licht)","10A52"]
[null,"Maatschappelijke deelname 3 (middel)","10A53"]
[null,"Maatschappelijke deelname 3 (zwaar)","10A54"]
[null,"Zelfstandig leven 1 (middelzwaar): outputgericht","10A55"]
[null,"Zelfstandig leven 1 (extra zwaar): outputgericht","10A56"]
[null,"Zelfstandig leven 2 (middelzwaar): outputgericht","10A57"]
[null,"Zelfstandig leven 2 (extra zwaar): outputgericht","10A58"]
[null,"Zelfstandig leven 3 (licht): outputgericht","10A59"]
[null,"Zelfstandig leven 3 (extra zwaar): outputgericht","10A60"]
[null,"Maatschappelijke deelname 1 (middelzwaar): outputgericht","10A61"]
[null,"Maatschappelijke deelname 1 (extra zwaar): outputgericht","10A62"]
[null,"Maatschappelijke deelname 2 (middelzwaar): outputgericht","10A63"]
[null,"Maatschappelijke deelname 2 (extra zwaar): outputgericht","10A64"]
[null,"Maatschappelijke deelname 3 (middelzwaar): outputgericht","10A65"]
[null,"Maatschappelijke deelname 3 (extra zwaar): outputgericht","10A66"]
[11,"Rolstoelen"]
[null,"Accessoires rolstoel","11A01"]
[null,"Elektrische rolstoel","11A02"]
[null,"Handmatig bewogen rolstoel","11A03"]
[null,"Individuele aanpassing rolstoel","11A04"]
[null,"Onderhoud en reparatie","11A05"]
[null,"Sport rolstoel","11A06"]
[null,"Werkstoelen","11A07"]
[12,"Vervoervoorzieningen"]
[null,"Aangepaste fietsen","12A01"]
[null,"Aanpassing vervoermiddel","12A02"]
[null,"Accessoires vervoersvoorziening","12A03"]
[null,"Ander verplaatsingsmiddel kinderen","12A04"]
[null,"Open elektrische buitenwagen (scootmobiel)","12A05"]
[null,"Gesloten buitenwagen","12A06"]
[null,"Ander verplaatsingsmiddel volwassenen","12A07"]
[null,"Bruikleenauto","12A08"]
[null,"Collectieve vervoervoorziening","12A09"]
[null,"Collectieve vervoervoorziening rolstoel","12A10"]
[null,"Driewielfietsen","12A11"]
[null,"Financiële tegemoetkoming vervoervoorziening","12A12"]
[null,"Onderhoud en reparatie","12A13"]
[null,"Verzekeringen","12A14"]
[13,"Woonvoorzieningen"]
[null,"Financiële tegemoetkoming woningaanpassing","13A01"]
[null,"Onroerende woonvoorziening","13A02"]
[null,"Roerende woonvoorziening","13A03"]
[null,"Traplift/tillift","13A04"]
[null,"Verwijderen woonvoorziening","13A05"]
[null,"Onderhoud en reparatie","13A06"]
[15,"Beschermd wonen"]
[null,"Beschermd wonen: outputgericht","15A01"]
[null,"Beschermd wonen: inspanningsgericht","15A02"]
[null,"Beschermd wonen: outputgericht (licht)","15A03"]
[null,"Beschermd wonen: outputgericht (middel)","15A04"]
[null,"Beschermd wonen: outputgericht (middelzwaar)","15A05"]
[null,"Beschermd wonen: outputgericht (zwaar)","15A06"]
[null,"Beschermd wonen: outputgericht (extra zwaar)","15A07"]
[null,"Beschermd wonen: inspanningsgericht (licht)","15A08"]
[null,"Beschermd wonen: inspanningsgericht (middel)","15A09"]
[null,"Beschermd wonen: inspanningsgericht (middelzwaar)","15A10"]
[null,"Beschermd wonen: inspanningsgericht (zwaar)","15A11"]
[null,"Beschermd wonen: inspanningsgericht (extra zwaar)","15A12"]
[null,"Per dag VPT 1GGZ-C excl.BH excl.DB","15A13"]
[null,"Per dag VPT 1GGZ-C excl.BH incl.DB","15A14"]
[null,"Per dag VPT 2GGZ-C excl.BH excl.DB","15A15"]
[null,"Per dag VPT 2GGZ-C excl.BH incl.DB","15A16"]
[null,"Per dag VPT 3GGZ-C excl.BH excl.DB","15A17"]
[null,"Per dag VPT 3GGZ-C excl.BH incl.DB","15A18"]
[null,"Per dag VPT 4GGZ-C excl.BH excl.DB","15A19"]
[null,"Per dag VPT 4GGZ-C excl.BH incl.DB","15A20"]
[null,"Per dag VPT 5GGZ-C excl.BH excl.DB","15A21"]
[null,"Per dag VPT 5GGZ-C excl.BH incl.DB","15A22"]
[null,"Per dag VPT 6GGZ-C excl.BH excl.DB","15A23"]
[null,"Per dag VPT 6GGZ-C excl.BH incl.DB","15A24"]
[null,"Per dag ZZP 1GGZ-C excl.BH excl.DB","15A25"]
[null,"Per dag ZZP 1GGZ-C excl.BH incl.DB","15A26"]
[null,"Per dag ZZP 2GGZ-C excl.BH excl.DB","15A29"]
[null,"Per dag ZZP 2GGZ-C excl.BH incl.DB","15A30"]
[null,"Per dag ZZP 3GGZ-C excl.BH excl.DB","15A33"]
[null,"Per dag ZZP 3GGZ-C excl.BH incl.DB","15A34"]
[null,"Per dag ZZP 4GGZ-C excl.BH excl.DB","15A37"]
[null,"Per dag ZZP 4GGZ-C excl.BH incl.DB","15A38"]
[null,"Per dag ZZP 5GGZ-C excl.BH excl.DB","15A41"]
[null,"Per dag ZZP 5GGZ-C excl.BH incl.DB","15A42"]
[null,"Per dag ZZP 6GGZ-C excl.BH excl.DB","15A45"]
[null,"Per dag ZZP 6GGZ-C excl.BH incl.DB","15A46"]
[null,"Beschermd wonen afwezigheidsdag: inspanningsgericht","15A49"]
[16,"Opvang"]
[null,"Opvang: outputgericht","16A01"]
[null,"Opvang: inspanningsgericht","16A02"]
[null,"Opvang: outputgericht (licht)","16A03"]
[null,"Opvang: outputgericht (middel)","16A04"]
[null,"Opvang: outputgericht (zwaar)","16A05"]
[17,"Spoedopvang"]
[null,"Spoedopvang: outputgericht","17A00"]
[null,"Spoedopvang: inspanningsgericht","17A01"]
[]
[null,"HH1 (huishoudelijke werkzaamheden)","01001"]
[null,"HH2 (organisatie van het huishouden)","01002"]
[null,"Aanbrengen van structuur c.q. voeren van regie","02001"]
[null,"Begeleiding bij beperkingen in de ontwikkeling","02002"]
[null,"Begeleiding bij fysieke beperkingen","02003"]
[null,"Begeleiding bij psychosociale beperkingen","02004"]
[null,"Begeleiding bij vervoer","02005"]
[null,"Begeleiding bij/naar het zelfstandig wonen","02006"]
[null,"Oefenen (onder begeleiding) ","02007"]
[null,"Ondersteuning bij praktische handelingen/vaardigheden","02008"]
[null,"Sociale relaties en maatschappelijk leven","02009"]
[null,"Toezicht","02010"]
[null,"Toeleiding ZG","02011"]
[null,"Verlengde toeleiding ZG","02012"]
[null,"Consultatie ZG","02013"]
[null,"Beantwoording korte begeleidingsvragen ZG","02014"]
[null,"Gespecialiseerde begeleiding ZG","02015"]
[null,"Revaliderende begeleiding ZG","02016"]
[null,"Begeleidersvoorziening doofblinden","02017"]
[null,"Doventolk","02018"]
[null,"Deeltijdverblijf","04001"]
[null,"Logeeropvang","04002"]
[null,"Huurderving","05001"]
[null,"Keuring woonvoorziening","05002"]
[null,"Tijdelijke huisvesting","05003"]
[null,"Verhuizing en inrichting","05004"]
[null,"Vrijmaken woning","05005"]
[null,"Boodschappendienst","06001"]
[null,"Maaltijdvoorziening","06002"]
[null,"Dagopvang bij beperking in de ontwikkeling","07001"]
[null,"Dagopvang bij fysieke beperkingen","07002"]
[null,"Dagopvang bij psychosociale beperkingen","07003"]
[null,"Dagactiviteit zintuiglijk gehandicapten","07004"]
[null,"Collectieve vervoerdienst","08001"]
[null,"Collectieve vervoerdienst rolstoel","08002"]
[null,"Financiële tegemoetkoming vervoer","08003"]
[null,"Individueel rolstoelvervoer","08004"]
[null,"Individueel vervoer","08005"]
[null,"Rijles scootmobiel","08006"]
[null,"Vervoer naar dagopvang","08007"]
[null,"Accessoires rolstoel","11001"]
[null,"Elektrische rolstoel","11002"]
[null,"Handmatig bewogen rolstoel","11003"]
[null,"Individuele aanpassing rolstoel","11004"]
[null,"Onderhoud en reparatie","11005"]
[null,"Sport rolstoel","11006"]
[null,"Werkstoelen","11007"]
[null,"Aangepaste fietsen","12001"]
[null,"Aanpassing vervoermiddel","12002"]
[null,"Accessoires vervoersvoorziening","12003"]
[null,"Ander verplaatsingsmiddel kinderen","12004"]
[null,"Open elektrische buitenwagen (scootmobiel)","12005"]
[null,"Gesloten buitenwagen","12006"]
[null,"Ander verplaatsingsmiddel volwassenen","12007"]
[null,"Bruikleenauto","12008"]
[null,"Collectieve vervoervoorziening","12009"]
[null,"Collectieve vervoervoorziening rolstoel","12010"]
[null,"Driewielfietsen","12011"]
[null,"Financiële tegemoetkoming vervoervoorziening","12012"]
[null,"Onderhoud en reparatie","12013"]
[null,"Verzekeringen","12014"]
[null,"Financiële tegemoetkoming woningaanpassing","13001"]
[null,"Onroerende woonvoorziening","13002"]
[null,"Roerende woonvoorziening","13003"]
[null,"Traplift/tillift","13004"]
[null,"Verwijderen woonvoorziening","13005"]
[null,"Onderhoud en reparatie","13006"]
[null,"Dak- en thuislozen opvang","16001"]
[null,"Vrouwenopvang","16002"]
[null,"Crisisopvang","17001"]